bitfinex/quotes_ETHUSD_20250517
["timestamp","ask_amount","ask_price","bid_price","bid_amount"]
[1747464781168,8.0,2490.3,2490.0,3.62121018]
[1747464782002,12.0156113,2490.3,2490.0,3.62121018]
[1747464782155,13.43427174,2490.3,2489.8,18.1041]
[1747464782478,4.8298417,2490.2,2490.1,7.509]
[1747464783485,4.01592014,2490.1,2489.8,17.343]
[1747464783694,4.01592014,2490.1,2489.9,7.506]
[1747464784162,6.24858869,2490.2,2489.9,7.506]
[1747464785189,8.0,2490.3,2489.9,10.39255273]
[1747464785389,8.0,2490.3,2490.0,4.84354935]
[1747464785879,8.0,2490.3,2490.0,0.8275]
[1747464788805,12.01559239,2490.3,2490.0,0.8275]
[1747464789899,22.07559239,2490.3,2490.0,0.8275]
[1747464795205,18.06,2490.3,2490.0,3.79678097]
[1747464795509,10.06,2490.3,2490.0,3.79678097]
[1747464795704,10.06,2490.3,2490.1,4.01590297]
[1747464795907,10.06,2490.3,2490.0,3.79678097]
[1747464796406,14.0756699,2490.3,2490.1,7.506]
[1747464796590,4.0157417,2490.2,2490.1,7.506]
[1747464797832,4.0157417,2490.2,2489.8,18.1066]
[1747464797993,4.0157417,2490.2,2490.1,7.506]
[1747464798188,10.06,2490.3,2490.1,7.506]
[1747464798189,14.07564548,2490.3,2490.1,7.506]
[1747464800116,4.01600964,2490.1,2489.8,17.343]
[1747464800324,4.01600964,2490.1,2489.9,7.505]
[1747464801414,5.29287941,2490.0,2489.9,7.505]
[1747464801615,5.29287941,2490.0,2489.8,17.343]
[1747464801616,4.56622555,2489.9,2489.8,17.343]
[1747464801819,13.36292555,2489.9,2489.8,24.848]
[1747464802005,4.56670951,2489.6,2489.5,0.47875232]
[1747464802321,4.56670951,2489.6,2489.4,7.505]
[1747464802322,12.56687085,2489.5,2489.4,7.505]
[1747464802613,13.84368601,2489.5,2489.4,7.505]
[1747464802821,14.64038601,2489.5,2489.4,7.505]
[1747464804383,23.55522471,2489.5,2489.4,7.506]
[1747464804720,27.57209556,2489.5,2489.4,7.506]
[1747464805225,24.70038601,2489.5,2489.4,7.506]
[1747464805383,19.4067,2489.5,2489.4,7.506]
[1747464805590,10.06,2489.5,2489.4,8.3201]
[1747464805916,10.06,2489.5,2489.4,12.33713221]
[1747464809201,10.06,2489.9,2489.4,8.3201]
[1747464809406,10.06,2489.9,2489.7,4.01645489]
[1747464809919,10.06,2489.9,2489.8,4.83048685]
[1747464811828,10.06,2489.9,2489.8,12.33748685]
[1747464813640,10.06,2490.3,2489.9,4.01614713]
[1747464813837,10.06,2490.3,2490.0,21.35897265]
[1747464814136,10.06,2490.3,2490.1,10.04351756]
[1747464821049,14.0757001,2490.3,2490.1,10.04351756]
[1747464821217,16.17021526,2490.3,2490.2,7.505]
[1747464822950,12.15451516,2490.3,2490.2,7.505]
[1747464823150,10.06,2490.3,2490.2,7.505]
[1747464825314,10.06,2490.3,2490.2,10.79298686]
[1747464825545,10.06,2490.3,2490.2,15.62022856]
[1747464828321,10.06,2490.3,2490.2,8.11522856]
[1747464828647,10.06,2490.3,2490.2,15.62022856]
[1747464828849,10.06,2490.3,2490.2,11.60448686]
[1747464829443,10.06,2490.3,2490.2,15.62022856]
[1747464831260,10.06,2490.3,2490.2,10.79298686]
[1747464831765,10.06,2490.3,2490.2,14.80872856]
[1747464834624,10.06,2490.7,2490.4,4.0153009]
[1747464834842,10.06,2490.7,2490.5,0.80308612]
[1747464836155,10.06,2490.7,2490.4,4.0153009]
[1747464837228,10.06,2490.7,2490.4,4.8268009]
[1747464837658,10.06,2490.7,2490.4,0.8115]
[1747464839367,10.06,2490.7,2490.4,4.82689071]
[1747464839659,10.06,2490.7,2490.4,0.8115]
[1747464840032,10.06,2490.7,2490.5,0.48270076]
[1747464841162,11.65547343,2490.7,2490.2,3.28798686]
[1747464841370,11.65547343,2490.7,2490.6,7.504]
[1747464842054,15.6704456,2490.7,2490.6,7.504]
[1747464844382,16.2204456,2490.7,2490.6,7.504]
[1747464844575,17.0395456,2490.7,2490.6,7.504]
[1747464846182,10.8791,2490.7,2490.6,7.504]
[1747464846375,10.06,2490.7,2490.6,7.504]
[1747464846564,14.07493556,2490.7,2490.6,7.504]
[1747464846766,14.07493556,2490.7,2490.6,7.502]
[1747464848666,16.22040899,2490.7,2490.6,7.502]
[1747464849490,4.0154192,2490.4,2490.3,17.338]
[1747464849689,14.0754192,2490.4,2490.3,24.84]
[1747464851897,22.8784192,2490.4,2490.3,24.84]
[1747464855601,22.8784192,2490.4,2490.3,17.338]
[1747464855893,23.4284192,2490.4,2490.3,24.841]
[1747464856075,27.08243502,2490.4,2490.3,24.841]
[1747464860208,22.6254192,2490.4,2490.3,7.503]
[1747464860394,18.61,2490.4,2490.3,7.503]
[1747464860694,22.6254192,2490.4,2490.3,7.503]
[1747464860992,24.22089263,2490.4,2490.3,7.503]
[1747464861807,24.22089263,2490.4,2489.8,21.35631943]
[1747464861808,4.8187417,2490.2,2489.8,17.34]
[1747464861996,5.3687417,2490.2,2490.1,7.503]
[1747464862309,4.01622555,2489.9,2489.8,17.34]
[1747464862477,4.01622555,2489.9,2489.8,24.843]
[1747464864511,5.61162411,2490.0,2489.8,24.843]
[1747464865607,4.01622555,2489.9,2489.8,24.843]
[1747464866175,14.09622555,2489.9,2489.8,24.844]
[1747464867004,14.09622555,2489.9,2489.8,17.34]
[1747464867306,14.64622555,2489.9,2489.8,24.844]
[1747464868143,15.47582555,2489.9,2489.8,24.844]
[1747464868804,15.47582555,2489.9,2489.8,17.34]
[1747464869004,15.47582555,2489.9,2489.8,24.844]
[1747464871103,14.64622555,2489.9,2489.8,24.844]
[1747464871294,10.08,2489.9,2489.8,24.844]
[1747464872213,14.09622555,2489.9,2489.8,24.844]
[1747464874099,10.08,2489.9,2489.8,24.844]
[1747464878346,14.09622555,2489.9,2489.8,24.844]
[1747464878499,14.09622555,2489.9,2489.8,24.843]
[1747464880196,10.08,2489.9,2489.8,24.843]
[1747464881837,14.09622555,2489.9,2489.8,24.843]
[1747464883544,10.08,2489.9,2489.8,27.40418]
[1747464883747,10.08,2489.9,2489.8,32.18936685]
[1747464885350,10.08,2490.2,2490.0,0.7688]
[1747464885731,14.09574282,2490.2,2489.8,28.17298]
[1747464886653,14.09574282,2490.2,2489.9,7.503]
[1747464886857,14.09574282,2490.2,2489.8,20.66998]
[1747464886858,4.0159407,2490.1,2489.8,20.66998]
[1747464887154,4.0159407,2490.1,2490.0,7.502]
[1747464887333,4.0159407,2490.1,2489.8,17.34]
[1747464887534,4.0159407,2490.1,2489.9,7.502]
[1747464888557,4.01606425,2490.0,2489.9,7.502]
[1747464888861,14.09606425,2490.0,2489.9,7.502]
[1747464890441,10.08,2490.0,2489.9,7.502]
[1747464891665,14.09606425,2490.0,2489.9,7.502]
[1747464892047,23.46116425,2490.0,2489.9,7.502]
[1747464892371,25.03031802,2490.0,2489.9,7.502]
[1747464894474,25.03031802,2490.0,2489.8,17.34]
[1747464894475,12.56622555,2489.9,2489.8,17.34]
[1747464894779,25.04669898,2489.9,2489.8,17.34]
[1747464894929,28.86009068,2489.9,2489.8,17.34]
[1747464895669,33.16772985,2489.9,2489.8,17.34]
[1747464897569,32.86009068,2489.9,2489.8,17.34]
[1747464898448,12.56638685,2489.8,2489.7,7.502]
[1747464899673,20.06838685,2489.8,2489.7,7.502]
[1747464900163,24.14349568,2489.8,2489.7,7.502]
[1747464901676,16.64149568,2489.8,2489.7,7.502]
[1747464901965,12.56638685,2489.8,2489.7,7.502]
[1747464902640,8.0,2489.8,2489.7,7.502]
[1747464903698,18.08,2489.8,2489.7,7.502]
[1747464904503,10.08,2489.8,2489.7,7.502]
[1747464904639,10.08,2489.8,2489.7,8.2812]
[1747464904844,10.08,2489.8,2489.7,9.91266806]
[1747464905144,10.08,2489.8,2489.7,13.92921623]
[1747464905347,10.08,2490.1,2489.8,4.79548805]
[1747464906102,10.08,2490.1,2489.8,0.7792]
[1747464906289,4.01610547,2490.0,2489.8,0.7792]
[1747464906456,4.01610547,2490.0,2489.9,7.502]
[1747464907160,14.09590679,2490.1,2489.9,7.502]
[1747464907481,10.08,2490.1,2489.9,7.502]
[1747464909407,10.08,2490.1,2490.0,4.79776425]
[1747464909758,18.08,2490.3,2490.0,4.79776425]
[1747464910289,18.08,2490.3,2490.0,0.7817]
[1747464911503,22.09559336,2490.3,2490.0,0.7817]
[1747464911872,18.08,2490.3,2490.0,0.7817]
[1747464912756,10.08,2490.3,2490.0,18.1237]
[1747464912965,10.08,2490.3,2490.2,4.0157417]
[1747464913164,10.08,2490.3,2490.1,4.01587427]
[1747464914563,10.08,2490.3,2490.0,23.77128427]
[1747464914992,10.08,2490.3,2490.1,4.01583065]
[1747464915177,10.08,2490.3,2490.2,2.37711588]
[1747464916107,10.08,2490.3,2490.2,6.39285758]
[1747464916402,10.08,2490.3,2490.2,7.14635758]
[1747464918794,10.08,2490.6,2490.3,4.01557755]
[1747464919020,10.08,2490.6,2490.4,7.501]
[1747464920184,10.08,2490.6,2490.4,11.51639827]
[1747464920385,10.08,2490.6,2490.4,13.38265208]
[1747464920614,10.08,2490.6,2490.5,4.01525798]
[1747464920908,10.08,2490.6,2490.5,7.5]
[1747464923980,10.08,2490.6,2490.5,8.3292]
[1747464924714,10.08,2490.8,2490.5,8.3292]
[1747464924922,10.08,2490.8,2490.5,9.96520299]
[1747464926917,10.08,2490.8,2490.5,13.98039946]
[1747464927216,10.08,2490.8,2490.6,4.0150215]
[1747464928994,10.08,2490.8,2490.5,13.98037458]
[1747464930730,10.08,2490.9,2490.5,13.98037458]
[1747464930885,10.08,2490.9,2490.6,1.11984343]
[1747464932716,4.01477436,2490.8,2490.6,1.11984343]
[1747464932887,4.01477436,2490.8,2490.7,7.499]
[1747464933318,14.89569719,2490.9,2490.7,7.499]
[1747464933524,16.49117062,2490.9,2490.7,7.499]
[1747464935520,4.01477436,2490.8,2490.7,7.499]
[1747464936793,14.09477436,2490.8,2490.7,7.499]
[1747464936992,10.08,2490.8,2490.7,7.499]
[1747464939834,10.08,2490.8,2490.7,11.51393556]
[1747464940134,10.08,2490.8,2490.7,10.86707554]
[1747464940297,10.08,2490.8,2490.7,14.8820111]
[1747464941095,10.08,2490.8,2490.7,10.86707554]
[1747464941394,10.08,2490.8,2490.5,17.336]
[1747464941619,10.08,2490.8,2490.6,7.497]
[1747464941894,10.08,2490.8,2490.7,7.497]
[1747464944343,10.08,2490.8,2490.7,8.2734]
[1747464944633,10.08,2490.8,2490.7,12.28833556]
[1747464944826,10.08,2490.8,2490.7,15.65227433]
[1747464945604,10.08,2491.2,2490.8,4.01473207]
[1747464946217,14.09418089,2491.2,2490.7,15.65227433]
[1747464946405,15.68965432,2491.2,2490.7,15.65227433]
[1747464951953,11.67547343,2491.2,2490.8,4.0147364]
[1747464952158,11.67547343,2491.2,2490.8,5.03827221]
[1747464953218,11.67547343,2491.2,2490.9,17.335]
[1747464953646,15.68975312,2491.2,2490.9,17.335]
[1747464956172,11.67547343,2491.2,2490.9,17.335]
[1747464956870,10.08,2491.2,2490.9,21.34960281]
[1747464957173,10.08,2491.2,2490.9,17.335]
[1747464957685,14.09414702,2491.2,2490.9,17.335]
[1747464957985,4.82763182,2491.1,2491.0,7.496]
[1747464959251,4.01445202,2491.0,2490.9,17.335]
[1747464959479,5.60992545,2491.0,2490.9,24.831]
[1747464959794,4.82768196,2491.1,2490.9,24.831]
[1747464960000,0.8133,2491.1,2490.9,24.831]
[1747464960202,0.55,2491.1,2490.9,24.831]
[1747464960402,10.08,2491.2,2490.9,25.5863]
[1747464962390,4.01430401,2491.1,2490.9,17.335]
[1747464962576,4.01430401,2491.1,2491.0,7.496]
[1747464963187,4.01445202,2491.0,2490.9,17.335]
[1747464963393,4.01437261,2491.1,2491.0,7.496]
[1747464963888,14.09437261,2491.1,2491.0,7.496]
[1747464964585,12.56445202,2491.0,2490.9,17.335]
[1747464964768,13.31735202,2491.0,2490.9,24.831]
[1747464965755,14.09436534,2491.1,2490.9,24.831]
[1747464966689,10.08,2491.0,2490.9,24.831]
[1747464973795,10.08,2491.0,2490.9,25.6515]
[1747464975702,14.0941336,2491.2,2490.9,25.6515]
[1747464980406,10.08,2491.2,2490.9,25.6515]
[1747464980873,14.09413723,2491.2,2490.9,25.6515]
[1747464981476,14.09413723,2491.2,2490.9,24.831]
[1747464982305,10.08,2491.2,2490.9,24.831]
[1747464982705,10.08,2491.2,2490.9,28.84547913]
[1747464982905,10.08,2491.2,2491.0,4.01443056]
[1747464983093,10.08,2491.2,2491.1,4.82669087]
[1747464986982,10.08,2491.2,2491.1,0.8124]
[1747464987403,10.08,2491.2,2491.1,4.82669087]
[1747464987808,10.08,2491.5,2491.1,4.82669087]
[1747464988109,14.09367619,2491.5,2491.1,4.20971579]
[1747464988406,10.08,2491.5,2491.1,8.22392289]
[1747464992623,10.08,2491.5,2491.2,4.0140314]
[1747464993202,10.08,2491.5,2491.3,7.493]
[1747464996921,10.08,2491.5,2491.3,24.826]
[1747464998031,10.08,2491.5,2491.4,0.8325]
[1747464998235,10.08,2491.5,2491.4,4.84630749]
[1747465001216,10.08,2491.8,2491.4,4.84630749]
[1747465002509,14.09316537,2491.8,2491.4,4.84630749]
[1747465004238,14.09316537,2491.8,2491.4,0.8325]
[1747465004543,4.01332768,2491.7,2491.4,0.8325]
[1747465004846,4.01332768,2491.7,2491.4,4.13025759]
[1747465005142,15.68872833,2491.8,2491.4,4.13025759]
[1747465005808,15.68871534,2491.8,2491.4,4.13025759]
[1747465006647,11.67547343,2491.8,2491.3,24.826]
[1747465006833,4.01356907,2491.6,2491.3,17.333]
[1747465007030,4.01356907,2491.6,2491.4,7.488]
[1747465007431,4.01339704,2491.7,2491.4,7.488]
[1747465008011,15.68876557,2491.8,2491.4,7.488]
[1747465009648,4.01332882,2491.7,2491.4,7.488]
[1747465010911,4.01332882,2491.7,2491.3,17.333]
[1747465011112,4.01332882,2491.7,2491.4,7.488]
[1747465011317,4.82922882,2491.7,2491.4,7.488]
[1747465011746,10.08,2491.6,2491.4,7.488]
[1747465012857,10.08,2491.6,2491.3,17.333]
[1747465013219,10.08,2491.6,2491.4,7.488]
[1747465013415,10.08,2491.6,2491.5,7.488]
[1747465015545,10.08,2491.6,2491.3,17.333]
[1747465015853,10.08,2491.6,2491.5,7.488]
[1747465019987,19.67547343,2491.6,2491.3,17.333]
[1747465020279,5.60928092,2491.4,2491.3,17.333]
[1747465020432,13.60928092,2491.4,2491.3,24.821]
[1747465021063,14.15928092,2491.4,2491.3,17.333]
[1747465021244,14.91798092,2491.4,2491.3,24.821]
[1747465021552,18.77283295,2491.4,2491.3,24.821]
[1747465023181,18.77283295,2491.4,2491.3,17.333]
[1747465023360,23.45916861,2491.3,2491.2,7.489]
[1747465023771,4.01472296,2490.9,2490.6,17.332]
[1747465023940,10.08,2490.8,2490.7,7.489]
[1747465026864,10.08,2490.8,2490.7,15.20286034]
[1747465027852,10.08,2490.8,2490.7,11.18792478]
[1747465028348,10.08,2490.8,2490.7,0.8153]
[1747465028548,10.08,2490.8,2490.7,8.3003]
[1747465029148,10.08,2490.8,2490.6,17.332]
[1747465029348,10.08,2490.8,2490.7,7.485]
[1747465035680,10.08,2491.0,2490.7,7.485]
[1747465037110,10.08,2491.0,2490.7,10.84906691]
[1747465037275,10.08,2491.0,2490.8,0.7934]
[1747465037476,10.08,2491.0,2490.8,4.80810395]
[1747465037895,10.08,2491.0,2490.8,0.7934]
[1747465038904,14.09430234,2491.1,2490.8,0.7934]
[1747465039305,4.01448149,2491.0,2490.7,7.485]
[1747465039481,4.01470383,2490.9,2490.8,7.485]
[1747465041680,14.09470383,2490.9,2490.8,7.485]
[1747465042403,10.08,2490.9,2490.8,7.485]
[1747465045803,14.09461319,2490.9,2490.8,7.485]
[1747465048314,10.08,2490.9,2490.8,7.485]
[1747465048607,14.09461319,2490.9,2490.8,7.485]
[1747465051121,10.08,2490.9,2490.8,7.485]
[1747465055320,14.09461319,2490.9,2490.8,7.485]
[1747465055487,10.08,2490.9,2490.8,7.485]
[1747465056224,14.09461319,2490.9,2490.8,7.485]
[1747465059206,10.08,2490.9,2490.8,7.485]
[1747465059708,10.08,2491.0,2490.8,7.485]
[1747465060223,10.08,2491.0,2490.8,7.01657892]
[1747465062610,10.08,2491.0,2490.8,11.80309322]
[1747465062934,10.08,2491.0,2490.9,1.58180234]
[1747465063121,10.08,2491.0,2490.8,11.80309322]
[1747465064749,10.08,2491.0,2490.8,7.78837892]
[1747465066613,10.08,2491.0,2490.8,11.80312935]
[1747465068349,10.08,2491.0,2490.9,4.01461319]
[1747465068851,10.08,2491.3,2491.1,4.01420954]
[1747465069019,1.59547343,2491.5,2491.1,4.01420954]
[1747465069020,10.08,2491.4,2491.1,4.01420954]
[1747465069421,10.08,2491.4,2491.0,4.01438458]
[1747465069732,10.08,2491.4,2491.1,4.01426146]
[1747465069935,10.08,2491.4,2490.9,4.01461319]
[1747465070243,14.09380782,2491.4,2490.9,4.01461319]
[1747465070445,17.69495807,2491.4,2490.9,4.01461319]
[1747465070634,17.69495807,2491.4,2491.0,4.014439]
[1747465070818,13.68115025,2491.4,2491.0,4.014439]
[1747465072459,13.68115025,2491.4,2491.0,21.348439]
[1747465074619,10.08,2491.4,2491.1,4.01419278]
[1747465075353,10.08,2491.4,2491.0,21.34836871]
[1747465075660,10.08,2491.4,2491.1,4.01427513]
[1747465076562,10.08,2491.4,2491.2,4.01407224]
[1747465076756,10.08,2491.4,2491.3,11.49496861]
[1747465076968,10.08,2491.4,2491.3,7.481]
[1747465077169,10.08,2491.6,2491.3,11.49496861]
[1747465077330,0.63904686,2491.9,2491.8,4.01316317]
[1747465077656,0.63904686,2491.9,2491.8,11.49416317]
[1747465078429,10.08,2492.1,2491.9,4.01290899]
[1747465078647,10.08,2492.1,2491.9,21.34690899]
[1747465079163,10.08,2492.1,2491.9,17.334]
[1747465080764,12.33206213,2492.2,2491.9,17.334]
[1747465081771,12.33206213,2492.2,2491.9,21.34697344]
[1747465082673,12.33206213,2492.2,2491.9,17.334]
[1747465083169,16.34461595,2492.2,2491.9,17.334]
[1747465083380,15.35169886,2492.2,2491.9,17.334]
[1747465083586,19.36423329,2492.2,2492.0,7.479]
[1747465084486,12.33206213,2492.2,2492.0,7.479]
[1747465087966,12.33206213,2492.2,2492.0,11.49176968]
[1747465089588,12.33206213,2492.2,2492.0,7.479]
[1747465090691,12.33206213,2492.2,2492.0,11.49173302]
[1747465091265,12.33206213,2492.2,2492.1,4.01268006]
[1747465091571,2.25206213,2492.2,2492.1,6.97280807]
[1747465092094,2.25206213,2492.2,2492.1,7.77240807]
[1747465093284,15.68703843,2492.8,2492.3,4.01234208]
[1747465093504,11.67547343,2492.8,2492.1,7.77240807]
[1747465093704,15.68711567,2492.8,2492.2,4.01251905]
[1747465094022,15.68711567,2492.8,2492.3,4.78950194]
[1747465094183,15.68711567,2492.8,2492.4,7.473]
[1747465095117,4.01180456,2492.7,2492.4,7.473]
[1747465095919,15.6871002,2492.8,2492.4,7.473]
[1747465096901,11.67547343,2492.8,2492.4,11.48518166]
[1747465097217,11.67547343,2492.8,2492.5,1.22624064]
[1747465097422,10.08,2492.8,2492.5,6.06284374]
[1747465097585,10.08,2492.8,2492.5,6.06284674]
[1747465098186,10.08,2492.9,2492.5,6.06284674]
[1747465099197,14.09140276,2492.9,2492.5,2.05094064]
[1747465100235,10.08,2492.9,2492.6,5.36543447]
[1747465101341,10.08,2493.0,2492.7,4.01169973]
[1747465101649,10.08,2493.0,2492.8,17.325]
[1747465101822,5.60647549,2493.2,2492.9,7.472]
[1747465101823,10.08,2493.1,2492.9,7.472]
[1747465104153,10.08,2493.1,2493.0,4.01123144]
[1747465104451,10.08,2493.1,2493.0,4.82993144]
[1747465104612,2.09224844,2493.4,2493.2,4.0109085]
[1747465104938,2.09224844,2493.4,2493.3,0.8187]
[1747465107467,2.09224844,2493.4,2493.0,8.2877]
[1747465107770,6.10292445,2493.4,2493.1,1.22141972]
[1747465107949,2.09224844,2493.4,2493.1,1.22141972]
[1747465108150,4.01090967,2493.2,2492.9,2.9633252]
[1747465108459,4.01090967,2493.2,2493.0,7.47]
[1747465108766,14.88530967,2493.2,2493.0,7.47]
[1747465109129,14.09090967,2493.2,2493.0,7.47]
[1747465109336,10.08,2493.2,2493.0,7.47]
[1747465115348,10.08,2493.2,2493.0,14.44372574]
[1747465116680,13.76772187,2493.4,2493.0,14.44372574]
[1747465117171,12.17224844,2493.4,2493.1,4.78817804]
[1747465120973,12.17224844,2493.4,2493.2,17.32]
[1747465124566,13.76772187,2493.4,2493.2,17.32]
[1747465126493,13.76772187,2493.4,2493.2,19.76847733]
[1747465126654,13.76772187,2493.4,2493.2,17.32]
[1747465126989,13.76772187,2493.4,2493.2,21.33090535]
[1747465126990,12.17224844,2493.4,2493.2,21.33090535]
[1747465127486,12.17224844,2493.4,2493.3,4.0107488]
[1747465130698,12.17224844,2493.4,2493.2,21.33081846]
[1747465131112,12.17224844,2493.4,2493.3,4.0107488]
[1747465131313,12.17224844,2493.4,2493.3,6.62262553]
[1747465131510,2.09224844,2493.4,2493.3,6.62262553]
[1747465131703,2.09224844,2493.4,2493.3,7.37282553]
[1747465134313,2.09224844,2493.4,2493.3,2.61187673]
[1747465135013,2.09224844,2493.4,2493.3,10.07587673]
[1747465137617,3.68772187,2493.4,2493.3,10.07587673]
[1747465139199,2.09224844,2493.4,2493.3,10.07587673]
[1747465139920,3.68772187,2493.4,2493.3,10.07587673]
[1747465141422,2.09224844,2493.4,2493.3,11.4747488]
[1747465142126,3.68772187,2493.4,2493.3,7.464]
[1747465142324,3.68772187,2493.4,2493.3,11.4747488]
[1747465143521,3.68772187,2493.4,2493.3,7.464]
[1747465145032,3.68772187,2493.4,2493.3,11.4747488]
[1747465145220,3.68772187,2493.4,2493.3,14.83326465]
[1747465146543,3.68772187,2493.4,2493.3,10.82251585]
[1747465147831,3.68772187,2493.4,2493.3,7.464]
[1747465152427,3.68772187,2493.4,2493.2,17.32]
[1747465152628,3.68772187,2493.4,2493.3,7.46]
[1747465157518,2.09224844,2493.4,2493.3,11.4707488]
[1747465158950,2.09224844,2493.4,2493.3,7.46]
[1747465161258,4.48162187,2493.4,2493.3,7.46]
[1747465161560,8.94037875,2493.4,2493.3,7.46]
[1747465161765,19.02037875,2493.4,2493.3,7.46]
[1747465161944,15.00978406,2493.4,2493.3,7.46]
[1747465162279,14.56162187,2493.4,2493.3,7.46]
[1747465162439,13.76772187,2493.4,2493.3,7.46]
[1747465163548,17.77830982,2493.4,2493.3,7.46]
[1747465164158,4.8150488,2493.3,2493.2,17.32]
[1747465164362,7.07438466,2493.3,2493.2,24.78]
[1747465166364,8.66985809,2493.3,2493.2,24.78]
[1747465167733,18.74985809,2493.3,2493.2,24.78]
[1747465174898,18.74985809,2493.3,2493.2,24.781]
[1747465175273,34.20785809,2493.3,2493.2,24.781]
[1747465175898,30.74710929,2493.3,2492.4,0.8284]
[1747465176199,1.59547343,2492.7,2492.5,24.78]
[1747465176369,11.67547343,2492.7,2492.5,28.79202649]
[1747465176804,10.08,2492.7,2492.5,28.79202649]
[1747465178067,10.08,2492.7,2492.6,7.461]
[1747465178267,10.08,2492.8,2492.6,7.461]
[1747465181320,10.08,2492.8,2492.6,15.50641273]
[1747465182719,11.67547343,2492.9,2492.6,15.50641273]
[1747465183016,11.67547343,2492.9,2492.6,11.4727919]
[1747465183320,11.67547343,2492.9,2492.6,7.461]
[1747465192538,11.67547343,2492.9,2492.6,11.47286468]
[1747465193628,11.67547343,2492.9,2492.6,7.461]
[1747465194837,11.67547343,2492.9,2492.6,11.472855]
[1747465195446,11.67547343,2492.9,2492.6,7.461]
[1747465195938,10.08,2492.9,2492.6,7.461]
[1747465196143,1.59547343,2492.7,2492.6,7.461]
[1747465197741,1.59547343,2492.7,2492.6,11.47287515]
[1747465197925,1.59547343,2492.7,2492.6,7.461]
[1747465199251,1.59547343,2492.7,2492.6,24.783]
[1747465199450,11.67547343,2492.9,2492.6,24.783]
[1747465200554,11.67547343,2492.9,2492.6,28.79487486]
[1747465201553,11.67547343,2492.9,2492.6,32.15336351]
[1747465202766,11.67547343,2492.9,2492.6,28.14155985]
[1747465203061,11.67547343,2492.9,2492.6,24.783]
[1747465203062,4.77405555,2492.8,2492.6,24.783]
[1747465203231,0.7625,2492.8,2492.6,24.783]
[1747465203435,10.08,2492.9,2492.8,4.01155327]
[1747465203861,10.08,2492.9,2492.8,15.64423113]
[1747465204841,10.08,2492.9,2492.8,16.11292047]
[1747465205045,10.08,2492.9,2492.8,7.84152047]
[1747465205239,11.67547343,2492.9,2492.8,7.84152047]
[1747465205429,15.68686578,2492.9,2492.8,7.84152047]
[1747465206264,15.68686578,2492.9,2492.8,7.457]
[1747465207738,11.67547343,2492.9,2492.8,7.457]
[1747465207946,15.68695744,2492.9,2492.6,17.322]
[1747465208170,17.65674032,2492.9,2492.6,17.322]
[1747465208335,17.65674032,2492.9,2492.7,7.457]
[1747465208535,4.01155327,2492.8,2492.7,7.457]
[1747465209039,10.08,2492.8,2492.7,7.457]
[1747465213882,10.08,2492.8,2492.6,17.322]
[1747465214184,10.08,2492.8,2492.7,7.453]
[1747465214683,10.08,2492.8,2492.6,17.322]
[1747465214684,11.64867943,2492.8,2492.6,17.322]
[1747465214849,15.6602327,2492.8,2492.7,7.453]
[1747465215051,17.25570613,2492.8,2492.7,7.453]
[1747465217589,13.24415286,2492.8,2492.7,7.453]
[1747465217788,11.67547343,2492.8,2492.7,7.453]
[1747465217949,15.68703291,2492.8,2492.7,7.453]
[1747465221685,11.67547343,2492.8,2492.7,7.453]
[1747465222809,15.6870267,2492.8,2492.7,7.453]
[1747465225084,13.3172142,2492.7,2492.6,17.322]
[1747465225297,14.88591687,2492.7,2492.6,24.776]
[1747465227100,24.96591687,2492.7,2492.6,24.776]
[1747465227531,24.96591687,2492.7,2492.6,17.322]
[1747465228841,4.01277822,2492.1,2491.8,0.825]
[1747465229119,12.01187515,2492.6,2491.1,12.01417797]
[1747465229120,11.67547343,2492.0,2491.9,24.777]
[1747465231433,10.08,2492.0,2491.9,32.49403442]
[1747465232229,10.08,2492.0,2491.9,32.87761062]
[1747465232537,10.08,2492.0,2491.9,25.42361062]
[1747465232719,10.08,2492.0,2491.9,40.33161062]
[1747465233695,10.08,2492.3,2492.0,4.01279345]
[1747465234332,1.59547343,2492.2,2491.9,17.7065762]
[1747465234534,4.01253874,2492.2,2492.1,7.455]
[1747465234713,5.60801217,2492.2,2492.1,7.455]
[1747465235594,4.01284109,2492.0,2491.9,17.323]
[1747465235796,15.68831452,2492.0,2491.9,24.778]
[1747465236108,16.23831452,2492.0,2491.9,24.778]
[1747465238033,10.08,2492.0,2491.9,29.54400212]
[1747465238329,10.08,2492.0,2491.9,39.95040233]
[1747465238535,11.67547343,2492.5,2491.9,39.95034612]
[1747465238736,11.67547343,2492.5,2492.1,4.01266948]
[1747465239101,11.67547343,2492.5,2492.3,4.01235048]
[1747465239428,11.67547343,2492.5,2492.4,7.455]
[1747465240208,12.43777343,2492.5,2491.9,20.27740021]
[1747465240413,1.59547343,2492.3,2492.0,13.57087287]
[1747465243832,1.59547343,2492.3,2491.9,28.7879965]
[1747465243833,1.59547343,2492.3,2491.9,17.323]
[1747465244021,1.59547343,2492.3,2492.0,7.455]
[1747465244430,5.60786819,2492.3,2492.0,7.455]
[1747465244949,4.0125346,2492.2,2492.0,7.455]
[1747465245137,5.60815349,2492.1,2492.0,7.455]
[1747465245437,6.64662232,2492.1,2492.0,7.455]
[1747465245637,16.72662232,2492.1,2492.0,7.455]
[1747465246142,16.72662232,2492.1,2492.0,7.452]
[1747465246936,4.01284109,2492.0,2491.9,17.323]
[1747465247239,14.09284109,2492.0,2491.9,24.775]
[1747465248741,12.15394925,2492.0,2491.9,24.775]
[1747465248945,10.08,2492.0,2491.9,24.775]